fUST/lending_fUST_20240315
["ID","MTS","AMOUNT","RATE_DAILY","PERIOD"]
[318958940,1710466234252,-500.0,0.00020855,2]
[318958941,1710466234261,-500.0,0.00020855,2]
[318958942,1710466234271,-500.0,0.00020855,2]
[318958943,1710466234280,-500.0,0.00020855,2]
[318958944,1710466234290,-500.0,0.00020855,2]
[318958945,1710466234299,-199.94524101,0.00020855,2]
[318958946,1710466234309,-500.0,0.00020855,2]
[318958947,1710466234318,-500.0,0.00020855,2]
[318958948,1710466234328,-500.0,0.00020855,2]
[318958949,1710466234337,-500.0,0.00020855,2]
[318958950,1710466234346,-500.0,0.00020855,2]
[318958951,1710466234357,-500.0,0.00020855,2]
[318958952,1710466234366,-500.0,0.00020855,2]
[318958953,1710466234376,-500.0,0.00020855,2]
[318958954,1710466234385,-500.0,0.00020855,2]
[318958955,1710466234394,-500.0,0.00020855,2]
[318958956,1710466234405,-45.92308503,0.00020855,2]
[318959004,1710466238352,-454.07691497,0.00020855,2]
[318959006,1710466238363,-500.0,0.00020855,2]
[318959008,1710466238374,-500.0,0.00020855,2]
[318959010,1710466238384,-500.0,0.00020855,2]
[318959011,1710466238394,-500.0,0.00020855,2]
[318959014,1710466238405,-637.79260692,0.00020855,2]
[318959015,1710466238417,-500.0,0.00020855,2]
[318959017,1710466238426,-325.47547687,0.00020855,2]
[318959019,1710466238436,-500.0,0.00020855,2]
[318959021,1710466238445,-500.0,0.00020855,2]
[318959023,1710466238455,-486.86761634,0.00020855,2]
[318959618,1710466243273,-725.9255441,0.00020685,2]
[318959943,1710466246623,-109.25943771,0.00020685,2]
[318959945,1710466246633,-13.13238366,0.00020855,2]
[318959947,1710466246644,-610.97226759,0.00020855,2]
[318959949,1710466246655,-500.0,0.00020855,2]
[318959951,1710466246664,-500.0,0.00020855,2]
[318959953,1710466246675,-587.5518707,0.00020855,2]
[318959955,1710466246685,-500.0,0.00020855,2]
[318959957,1710466246694,-234.24,0.00020855,2]
[318959959,1710466246703,-345.76984606,0.00020855,2]
[318959961,1710466246713,-37.73054428,0.00020855,2]
[318962202,1710466269767,151.72491268,0.000189,2]
[318964163,1710467438420,-258.3199044,0.00020755,2]
[318964165,1710467438433,-987.05812687,0.00020755,2]
[318964671,1710467443459,-12.94187313,0.00020755,2]
[318964673,1710467443469,-331.37448475,0.00020853,2]
[318964675,1710467443479,-405.57827831,0.00020853,2]
[318964677,1710467443488,-559.94525131,0.00020853,2]
[318964679,1710467443497,-181.25815924,0.00020853,2]
[318964681,1710467443507,-502.99647321,0.00020853,2]
[318964683,1710467443517,-237.01758887,0.00020854,2]
[318964686,1710467443527,-3018.7432427,0.00020854,2]
[318965108,1710467447836,-490.55298267,0.00020854,2]
[318965110,1710467447845,-500.0,0.00020855,2]
[318965112,1710467447854,-161.49464991,0.00020855,2]
[318965114,1710467447863,-506.5433656,0.00020855,2]
[318965116,1710467447873,-412.25122499,0.00020855,2]
[318965118,1710467447882,-500.0,0.00020855,2]
[318965121,1710467447891,-500.0,0.00020855,2]
[318965124,1710467447900,-500.63083967,0.00020855,2]
[318965127,1710467447911,-564.25383608,0.00020855,2]
[318965130,1710467447923,-199.59155021,0.00020855,2]
[318965133,1710467447935,-480.78344542,0.00020855,2]
[318965136,1710467447944,-500.0,0.00020855,2]
[318965139,1710467447954,-259.49723341,0.00020855,2]
[318965142,1710467447963,-500.0,0.00020855,2]
[318965145,1710467447971,-500.0,0.00020855,2]
[318965148,1710467447980,-500.0,0.00020855,2]
[318965151,1710467447990,-500.0,0.00020855,2]
[318965153,1710467447999,-533.14336276,0.00020855,2]
[318965156,1710467448010,-194.3684317,0.00020855,2]
[318965158,1710467448019,-26618.75782776,0.00020855,10]
[318966887,1710467466044,19251.0,0.000145,2]
[318967257,1710467663817,195.2537421,0.00019903,2]
[318967260,1710467861815,123171.69231073,0.0002,2]
[318967354,1710468638542,-596.65223752,0.00019854,2]
[318967356,1710468638551,-522.4,0.00019855,7]
[318967358,1710468638561,-500.0,0.00019855,7]
[318967360,1710468638570,-500.0,0.00019855,7]
[318967362,1710468638580,-500.0,0.00019855,7]
[318967364,1710468638589,-10406.21446242,0.0002,2]
[318967366,1710468638602,-996.80451,0.0002,2]
[318968036,1710468646864,-9347.10785005,0.0002,2]
[318968038,1710468646874,-404.0,0.0002,2]
[318968040,1710468646883,-2019.999161,0.00020474,2]
[318968042,1710468646894,-566.49342459,0.00020755,2]
[318968044,1710468646903,-748.94785528,0.00020755,2]
[318968046,1710468646912,-433.22033025,0.000208,2]
[318968048,1710468646922,-334.82967351,0.00020855,2]
[318971005,1710469317490,-300000.0,0.00020855,10]
[318971008,1710469378908,-104861.0,0.00020855,10]
[318971009,1710469394528,-2908.12,0.00020855,10]
[318971010,1710469401645,-13654.0,0.00020855,10]
[318971011,1710469408640,-29646.0,0.00020855,10]
[318971103,1710469837873,-159.18,0.00019855,7]
[318971104,1710469837883,-186.48640249,0.00020755,2]
[318971107,1710469837893,-1000.0,0.00020755,2]
[318971109,1710469837903,-775.79165495,0.00020853,2]
[318971312,1710469839899,-1578.12065137,0.00020853,2]
[318971314,1710469839908,-980.9737947,0.00020853,2]
[318971629,1710469843130,-166.05603817,0.00020853,2]
[318972206,1710469848734,-10068.56105558,0.00020853,2]
[318973704,1710470951581,6000.0,0.0002,2]
[318973747,1710471033628,-288.9135,0.00020755,2]
[318973748,1710471033638,-500.0,0.00020755,2]
[318973749,1710471033651,-520.99016337,0.00020755,2]
[318973750,1710471033660,-76203.88918518,0.00020755,2]
[318973751,1710471033669,-500.0,0.00020852,2]
[318973753,1710471033679,-1443.44970943,0.00020853,2]
[318973755,1710471033689,-1167.59713166,0.00020853,2]
[318973758,1710471033698,-489.10226409,0.00020853,2]
[318973761,1710471033707,-597.89058462,0.00020854,2]
[318973764,1710471033717,-582.0,0.00020854,2]
[318973766,1710471033727,-500.0,0.00020854,2]
[318973769,1710471033737,-288.9135,0.00020855,2]
[318973772,1710471033747,-500.0,0.00020855,2]
[318973774,1710471033757,-488.70010186,0.00020855,2]
[318973777,1710471033767,-631.05421276,0.00020855,2]
[318973779,1710471033777,-195.6556214,0.00020855,2]
[318973782,1710471033787,-500.0,0.00020855,2]
[318973787,1710471033809,-500.0,0.00020855,2]
[318973790,1710471033822,-500.0,0.00020855,2]
[318973791,1710471033833,-505.61480382,0.00020855,2]
[318973793,1710471033845,-500.0,0.00020855,2]
[318973795,1710471033855,-500.0,0.00020855,2]
[318973797,1710471033866,-432.38141795,0.00020855,2]
[318973799,1710471033876,-527.55396497,0.00020855,2]
[318973802,1710471033887,-540.17964676,0.00020855,2]
[318973804,1710471033901,-500.0,0.00020855,2]
[318973807,1710471033911,-500.0,0.00020855,2]
[318973811,1710471033924,-500.0,0.00020855,2]
[318973814,1710471033934,-152.59501242,0.00020855,2]
[318973816,1710471033943,-500.0,0.00020855,2]
[318973819,1710471033953,-500.0,0.00020855,2]
[318973821,1710471033962,-511.24291273,0.00020855,2]
[318973824,1710471033971,-500.0,0.00020855,2]
[318973827,1710471033981,-153.77244912,0.00020855,2]
[318973829,1710471033990,-500.0,0.00020855,2]
[318973830,1710471034000,-501.38368333,0.00020855,2]
[318973832,1710471034010,-502.0291574,0.00020855,2]
[318973834,1710471034021,-500.64109926,0.00020855,2]
[318973836,1710471034033,-500.0,0.00020855,2]
[318973837,1710471034043,-500.0,0.00020855,2]
[318973839,1710471034052,-500.0,0.00020855,2]
[318973841,1710471034063,-500.0,0.00020855,2]
[318973843,1710471034072,-500.0,0.00020855,2]
[318973844,1710471034082,-506.33630138,0.00020855,2]
[318973846,1710471034093,-501.39790761,0.00020855,2]
[318973848,1710471034104,-500.0,0.00020855,2]
[318973850,1710471034114,-500.0,0.00020855,2]
[318973852,1710471034124,-500.0,0.00020855,2]
[318973854,1710471034134,-507.813862,0.00020855,2]
[318973855,1710471034143,-501.65981918,0.00020855,2]
[318973857,1710471034161,-500.0,0.00020855,2]
[318973859,1710471034171,-500.0,0.00020855,2]
[318973861,1710471034181,-500.0,0.00020855,2]
[318973864,1710471034192,-513.75077974,0.00020855,2]
[318973865,1710471034202,-500.0,0.00020855,2]
[318973867,1710471034212,-503.58141526,0.00020855,2]
[318973869,1710471034222,-500.0,0.00020855,2]
[318973871,1710471034232,-500.0,0.00020855,2]
[318973872,1710471034241,-500.0,0.00020855,2]
[318973873,1710471034251,-500.0,0.00020855,2]
[318973874,1710471034261,-527.84508552,0.00020855,2]
[318973875,1710471034271,-500.0,0.00020855,2]
[318973876,1710471034281,-501.55845944,0.00020855,2]
[318973877,1710471034290,-500.0,0.00020855,2]
[318973878,1710471034300,-500.0,0.00020855,2]
[318973879,1710471034310,-344.68558483,0.00020855,2]
[318973880,1710471034320,-500.0,0.00020855,2]
[318973881,1710471034330,-500.0,0.00020855,2]
[318973882,1710471034340,-621.6928893,0.00020855,2]
[318973883,1710471034351,-500.0,0.00020855,2]
[318973884,1710471034362,-500.0,0.00020855,2]
[318973885,1710471034373,-533.51550157,0.00020855,2]
[318973886,1710471034383,-500.0,0.00020855,2]
[318973887,1710471034512,-500.0,0.00020855,2]
[318973888,1710471034525,-500.0,0.00020855,2]
[318973889,1710471034535,-500.0,0.00020855,2]
[318973890,1710471034545,-500.0,0.00020855,2]
[318973891,1710471034555,-500.0,0.00020855,2]
[318973892,1710471034565,-500.0,0.00020855,2]
[318973893,1710471034575,-500.0,0.00020855,2]
[318973894,1710471034584,-500.0,0.00020855,2]
[318973895,1710471034593,-500.0,0.00020855,2]
[318973896,1710471034604,-500.0,0.00020855,2]
[318973897,1710471034614,-504.39270675,0.00020855,2]
[318973898,1710471034623,-500.0,0.00020855,2]
[318973899,1710471034632,-500.0,0.00020855,2]
[318973900,1710471034641,-500.0,0.00020855,2]
[318973901,1710471034657,-174.90636188,0.00020855,2]
[318973902,1710471034667,-500.0,0.00020855,2]
[318973903,1710471034677,-501.64998498,0.00020855,2]
[318973904,1710471034687,-508.48105015,0.00020855,2]
[318973905,1710471034697,-500.0,0.00020855,2]
[318973906,1710471034707,-500.0,0.00020855,2]
[318973907,1710471034717,-569.12599382,0.00020855,2]
[318973908,1710471034726,-349.12028881,0.00020855,2]
[318973909,1710471034736,-500.0,0.00020855,2]
[318973910,1710471034745,-500.0,0.00020855,2]
[318973911,1710471034754,-500.0,0.00020855,2]
[318973912,1710471034764,-350.26404234,0.00020855,2]
[318973913,1710471034774,-500.0,0.00020855,2]
[318973914,1710471034783,-500.0,0.00020855,2]
[318973915,1710471034793,-500.0,0.00020855,2]
[318973916,1710471034802,-500.0,0.00020855,2]
[318973917,1710471034811,-337.67733127,0.00020855,2]
[318973918,1710471034821,-549.80270277,0.00020855,2]
[318973919,1710471034830,-80630.31495055,0.00020855,10]
[318973920,1710471034843,-5931.79881023,0.00020855,10]
[318973955,1710471038937,-1998.10887097,0.00020855,10]
[318973960,1710471039004,-1410.127186,0.00020855,10]
[318973963,1710471039024,-103014.6283342,0.00020855,10]
[318973965,1710471039036,-54695.6038212,0.00020855,10]
[318973967,1710471039048,-1002.98548587,0.00020855,10]
[318973969,1710471039060,-1778.64471599,0.00020855,10]
[318974089,1710471040187,-4268.96882847,0.00020855,10]
[318974092,1710471040198,-7038.2,0.00020855,10]
[318974094,1710471040210,-2776.80405652,0.00020855,10]
[318974360,1710471043093,-3300.0,0.00020855,10]
[318974363,1710471043114,-402.86338597,0.00020855,10]
[318974366,1710471043126,-1982.1618532,0.00020855,10]
[318974658,1710471046604,-351.10475835,0.00020855,10]
[318974659,1710471046616,-3287.44985,0.00020855,10]
[318976032,1710471074142,336.92563888,0.00019811,2]
[318976035,1710471094113,310.38075662,0.00019811,2]
[318976106,1710471250061,696.76875296,0.00019178,2]
[318976304,1710471380171,336.85111185,0.00019811,2]
[318976305,1710471386652,192.43815829,0.00019178,2]
[318976306,1710471387200,1512.65833217,0.0001981,2]
[318976309,1710471595852,595.7489145,0.00019801,2]
[318976310,1710471607123,957.8667283,0.00018924,2]
[318976311,1710471608245,636.89333641,0.00019871,2]
[318976312,1710471613778,2599.93937474,0.0001987,2]
[318976313,1710471623138,313.815813,0.00019801,2]
[318976321,1710471647670,8529.8194984,0.00019801,2]
[318976402,1710471714517,25082.89349,0.00025,120]
[318976491,1710472233147,-187.42109409,0.00020228,2]
[318976493,1710472233159,-4674.24583842,0.00020229,5]
[318976496,1710472233169,-2885.99938,0.00020474,2]
[318976498,1710472233180,-725.9255441,0.00020685,2]
[318976500,1710472233191,-1393.74510228,0.00020755,2]
[318976502,1710472233203,-4508.20553512,0.00020755,2]
[318976504,1710472233215,-240.0,0.00020755,2]
[318976506,1710472233234,-180.39642048,0.00020787,2]
[318976508,1710472233246,-262.76167468,0.0002079,2]
[318976511,1710472233260,-1130.98342756,0.0002079,2]
[318976513,1710472233271,-7181.38833894,0.000208,9]
[318976515,1710472233284,-448.06499995,0.000208,9]
[318976518,1710472233298,-1623.06883888,0.000208,9]
[318976520,1710472233311,-1302.90139904,0.000208,9]
[318976522,1710472233323,-18583.695855,0.000208,9]
[318976533,1710472233526,-32794.62295318,0.000208,9]
[318976534,1710472233538,-1393.74510224,0.00020825,2]
[318976535,1710472233550,-2626.67053907,0.00020831,3]
[318976536,1710472233561,-267.48010962,0.00020832,2]
[318976537,1710472233572,-597.56016141,0.00020853,2]
[318976538,1710472233583,-236.20338182,0.00020853,2]
[318976539,1710472233595,-336.07256178,0.00020853,2]
[318976540,1710472233606,-543.50843682,0.00020853,2]
[318976541,1710472233617,-241.23351381,0.00020853,2]
[318976542,1710472233628,-369.91254392,0.00020853,2]
[318976543,1710472233639,-1966.87565012,0.00020853,2]
[318976544,1710472233650,-303.62692092,0.00020853,2]
[318976545,1710472233662,-325.76477058,0.00020853,2]
[318976546,1710472233673,-180.59567431,0.00020853,2]
[318976547,1710472233685,-241.48433561,0.00020853,2]
[318976548,1710472233696,-157.39049659,0.00020853,2]
[318976549,1710472233707,-164.4431623,0.00020853,2]
[318976550,1710472233723,-213.92187205,0.00020853,2]
[318976551,1710472233734,-2647.32551417,0.00020853,2]
[318976552,1710472233746,-529.12647447,0.00020854,2]
[318976553,1710472233757,-325.87612203,0.00020854,2]
[318976554,1710472233768,-4664.66705775,0.00020855,2]
[318976555,1710472233779,-500.0,0.00020855,2]
[318976556,1710472233791,-552.54753269,0.00020855,2]
[318976557,1710472233802,-500.0,0.00020855,2]
[318976558,1710472233814,-602.84032163,0.00020855,2]
[318976559,1710472233826,-500.0,0.00020855,2]
[318976560,1710472233836,-500.0,0.00020855,2]
[318976561,1710472233846,-507.89812452,0.00020855,2]
[318976562,1710472233856,-292.83658607,0.00020855,2]
[318976563,1710472233865,-504.55925232,0.00020855,2]
[318976564,1710472233875,-500.0,0.00020855,2]
[318976565,1710472233885,-500.0,0.00020855,2]
[318976566,1710472233897,-500.0,0.00020855,2]
[318976567,1710472233907,-500.0,0.00020855,2]
[318976568,1710472233919,-500.0,0.00020855,2]
[318976569,1710472233930,-500.0,0.00020855,2]
[318976570,1710472233941,-500.0,0.00020855,2]
[318976571,1710472233953,-500.0,0.00020855,2]
[318976572,1710472233965,-396.05388051,0.00020855,2]
[318976573,1710472233979,-500.0,0.00020855,2]
[318976574,1710472233992,-197.78108581,0.00020855,2]
[318976575,1710472234003,-605.16208713,0.00020855,2]
[318976576,1710472234014,-500.0,0.00020855,2]
[318976577,1710472234026,-500.0,0.00020855,2]
[318976578,1710472234037,-500.0,0.00020855,2]
[318976579,1710472234048,-500.0,0.00020855,2]
[318976580,1710472234058,-500.0,0.00020855,2]
[318976581,1710472234068,-576.59994264,0.00020855,2]
[318976582,1710472234078,-500.0,0.00020855,2]
[318976583,1710472234089,-500.0,0.00020855,2]
[318976584,1710472234101,-500.0,0.00020855,2]
[318976585,1710472234111,-500.0,0.00020855,2]
[318976586,1710472234122,-500.0,0.00020855,2]
[318976587,1710472234133,-500.0,0.00020855,2]
[318976588,1710472234143,-500.0,0.00020855,2]
[318976589,1710472234153,-500.0,0.00020855,2]
[318976590,1710472234163,-500.0,0.00020855,2]
[318976591,1710472234174,-455.62528335,0.00020855,2]
[318976592,1710472234305,-500.0,0.00020855,2]
[318976593,1710472234315,-500.0,0.00020855,2]
[318976594,1710472234325,-500.0,0.00020855,2]
[318976595,1710472234334,-500.0,0.00020855,2]
[318976596,1710472234343,-500.0,0.00020855,2]
[318976597,1710472234352,-500.0,0.00020855,2]
[318976598,1710472234362,-500.0,0.00020855,2]
[318976599,1710472234371,-500.0,0.00020855,2]
[318976600,1710472234381,-500.0,0.00020855,2]
[318976601,1710472234393,-415.6322413,0.00020855,2]
[318976602,1710472234402,-269.30984799,0.00020855,2]
[318976603,1710472234411,-500.0,0.00020855,2]
[318976604,1710472234422,-532.34765645,0.00020855,2]
[318976605,1710472234432,-500.0,0.00020855,2]
[318976606,1710472234442,-500.0,0.00020855,2]
[318976607,1710472234451,-500.0,0.00020855,2]
[318976608,1710472234460,-500.0,0.00020855,2]
[318976609,1710472234474,-500.0,0.00020855,2]
[318976610,1710472234483,-500.0,0.00020855,2]
[318976611,1710472234493,-500.0,0.00020855,2]
[318976612,1710472234503,-211.37834959,0.00020855,2]
[318976613,1710472234513,-500.0,0.00020855,2]
[318976614,1710472234522,-500.0,0.00020855,2]
[318976615,1710472234532,-500.0,0.00020855,2]
[318976616,1710472234542,-500.0,0.00020855,2]
[318976617,1710472234551,-500.0,0.00020855,2]
[318976618,1710472234562,-500.0,0.00020855,2]
[318976619,1710472234572,-500.0,0.00020855,2]
[318976620,1710472234581,-500.0,0.00020855,2]
[318976621,1710472234591,-500.0,0.00020855,2]
[318976622,1710472234600,-252.08505551,0.00020855,2]
[318976623,1710472234610,-500.0,0.00020855,2]
[318976624,1710472234620,-500.0,0.00020855,2]
[318976625,1710472234630,-500.0,0.00020855,2]
[318976626,1710472234640,-500.0,0.00020855,2]
[318976627,1710472234649,-500.0,0.00020855,2]
[318976628,1710472234659,-500.0,0.00020855,2]
[318976629,1710472234669,-500.0,0.00020855,2]
[318976630,1710472234679,-500.0,0.00020855,2]
[318976631,1710472234689,-500.0,0.00020855,2]
[318976632,1710472234699,-500.0,0.00020855,2]
[318976633,1710472234708,-500.0,0.00020855,2]
[318976634,1710472234723,-500.0,0.00020855,2]
[318976635,1710472234732,-500.0,0.00020855,2]
[318976636,1710472234742,-500.0,0.00020855,2]
[318976637,1710472234751,-500.0,0.00020855,2]
[318976638,1710472234761,-500.0,0.00020855,2]
[318976639,1710472234770,-500.0,0.00020855,2]
[318976640,1710472234780,-500.0,0.00020855,2]
[318976641,1710472234790,-500.0,0.00020855,2]
[318976642,1710472234799,-534.41,0.00020855,2]
[318976643,1710472234809,-500.0,0.00020855,2]
[318976644,1710472234818,-534.41,0.00020855,2]
[318976645,1710472234827,-500.0,0.00020855,2]
[318976646,1710472234836,-534.41,0.00020855,2]
[318976647,1710472234845,-500.0,0.00020855,2]
[318976648,1710472234854,-534.41,0.00020855,2]
[318976649,1710472234863,-454.9,0.00020855,2]
[318976650,1710472234872,-534.41,0.00020855,2]
[318976651,1710472234882,-534.41,0.00020855,2]
[318976652,1710472234891,-534.41,0.00020855,2]
[318976653,1710472234900,-534.41,0.00020855,2]
[318976654,1710472234910,-534.41,0.00020855,2]
[318976655,1710472234919,-534.41,0.00020855,2]
[318976656,1710472234928,-534.41,0.00020855,2]
[318976657,1710472234937,-534.41,0.00020855,2]
[318976658,1710472234947,-534.41,0.00020855,2]
[318976659,1710472234956,-534.41,0.00020855,2]
[318976660,1710472234965,-534.41,0.00020855,2]
[318976661,1710472234981,-534.41,0.00020855,2]
[318976662,1710472234990,-534.41,0.00020855,2]
[318976663,1710472234999,-534.41,0.00020855,2]
[318976664,1710472235009,-534.41,0.00020855,2]
[318976665,1710472235019,-534.41,0.00020855,2]
[318976666,1710472235028,-534.41,0.00020855,2]
[318976667,1710472235038,-534.41,0.00020855,2]
[318976668,1710472235047,-534.41,0.00020855,2]
[318976669,1710472235057,-534.61810287,0.00020855,2]
[318976670,1710472235067,-500.0,0.00020855,2]
[318976671,1710472235077,-500.0,0.00020855,2]
[318976672,1710472235087,-500.0,0.00020855,2]
[318976673,1710472235097,-500.41079589,0.00020855,2]
[318976674,1710472235107,-500.0,0.00020855,2]
[318976675,1710472235116,-500.0,0.00020855,2]
[318976676,1710472235126,-500.0,0.00020855,2]
[318976677,1710472235135,-283.44075701,0.00020855,2]
[318976678,1710472235144,-500.0,0.00020855,2]
[318976679,1710472235154,-500.0,0.00020855,2]
[318976680,1710472235164,-500.0,0.00020855,2]
[318976681,1710472235173,-319.90985775,0.00020855,2]
[318976682,1710472235183,-500.0,0.00020855,2]
[318976683,1710472235193,-500.0,0.00020855,2]
[318976684,1710472235202,-500.0,0.00020855,2]
[318976685,1710472235212,-213.05623581,0.00020855,2]
[318976686,1710472235225,-214745.02989421,0.00020855,10]
[318976797,1710472238424,-474.000006,0.00020855,10]
[318976819,1710472238630,-6652.1503219,0.00020855,10]
[318976822,1710472238647,-2448.31258117,0.00020855,10]
[318976824,1710472238658,-486.03346757,0.00020855,10]
[318977124,1710472242965,-35177.27762352,0.00020855,10]
[318977127,1710472242982,-13656.47270942,0.00020855,10]
[318977130,1710472242995,-3397.85,0.00020855,10]
[318977153,1710472243119,-326631.22193371,0.00020855,10]
[318977156,1710472243130,-2098.55409019,0.00020855,10]
[318977159,1710472243142,-149128.12374262,0.00020855,10]
[318977161,1710472243153,-18047.04896422,0.00020855,10]
[318977163,1710472243165,-59962.07826301,0.00020855,10]
[318977165,1710472243176,-3315.47452844,0.00020855,10]
[318977277,1710472246825,-208.46014037,0.00020854,2]
[318977281,1710472246836,-1242.36,0.00020854,2]
[318977283,1710472246846,-20798.28829512,0.00020855,10]
[318977287,1710472246858,-397.04069267,0.00020855,10]
[318977290,1710472246878,-9421.8,0.00020855,10]
[318977292,1710472246890,-12024.09098672,0.00020855,10]
[318977294,1710472246902,-793.6544,0.00020855,10]
[318977296,1710472246914,-2972.23999999,0.00020855,10]
[318977298,1710472246929,-6802.33185083,0.00020855,10]
[318977300,1710472246942,-1115.42130348,0.00020855,10]
[318977302,1710472246954,-684.0,0.00020855,10]
[318977327,1710472248042,-7436.09758877,0.00020855,10]
[318977329,1710472248137,-77111.70243811,0.00020855,10]
[318977330,1710472248149,-13643.44988419,0.00020855,10]
[318977331,1710472248160,-10818.505272,0.00020855,10]
[318977332,1710472248171,-472.51720232,0.00020855,10]
[318977341,1710472252366,165906.5974,0.00019117,7]
[318977345,1710472502500,312.65899403,0.00019117,2]
[318977346,1710472518442,312.65899403,0.00019117,2]
[318977347,1710472529292,330.677149,0.00019756,2]
[318977348,1710472540437,313.18098068,0.00019117,2]
[318977349,1710472595350,2434.13928,0.00019753,2]
[318977351,1710472959015,15960.47587622,0.00019753,2]
[318977353,1710472966491,312.60129477,0.00019753,2]
[318977354,1710472974944,5215.17023122,0.00019753,2]
[318977355,1710472984477,312.60129477,0.00019753,2]
[318977356,1710473004490,312.60129477,0.00019753,2]
[318977357,1710473020210,165.338574,0.00019575,2]
[318977358,1710473020303,12275.54762408,0.00019753,2]
[318977359,1710473020486,312.60129477,0.00019753,2]
[318977360,1710473040501,357.13159477,0.00019753,2]
[318977462,1710473255940,584.71145257,0.0001985,2]
[318977463,1710473256535,6758.98309919,0.0002,5]
[318977464,1710473286402,155.15826143,0.0002,2]
[318977465,1710473300333,155.32373615,0.0002,2]
[318977466,1710473355868,2000.0,0.00019906,2]
[318977474,1710473395875,400.88974054,0.00019178,2]
[318977475,1710473396782,16640.80870169,0.00019907,2]
[318977554,1710473435814,-155.16136782,0.00020003,2]
[318977556,1710473435825,-429.57182691,0.00020004,2]
[318977557,1710473435836,-1819.76488135,0.00020004,2]
[318977559,1710473435851,-753.72594,0.00020004,2]
[318977561,1710473435862,-520.0,0.00020004,2]
[318977562,1710473435878,-337.43997667,0.00020004,2]
[318977563,1710473435889,-806.63888185,0.00020005,2]
[318977565,1710473435899,-1512.65833217,0.00020005,2]
[318977567,1710473435909,-240.91023365,0.00020006,2]
[318977569,1710473435920,-331.50911962,0.00020007,2]
[318977571,1710473435930,-300.0,0.00020007,2]
[318977573,1710473435940,-10023.44345604,0.00020008,2]
[318977574,1710473435953,-5246.17964708,0.00020008,2]
[318977575,1710473435963,-153.0,0.00020014,2]
[318977576,1710473435972,-153.0,0.00020288,2]
[318977577,1710473435983,-153.0,0.00020562,2]
[318977579,1710473435993,-300.0671926,0.00020652,2]
[318977581,1710473436003,-1708.65866715,0.00020655,2]
[318977583,1710473436014,-1000.0,0.00020655,2]
[318977585,1710473436023,-1708.65866711,0.00020666,2]
[318977587,1710473436033,-1708.65866711,0.00020678,2]
[318977588,1710473436043,-1708.65866711,0.00020689,2]
[318977590,1710473436054,-40.19132073,0.000207,3]
[318977869,1710473438740,-5988.23451657,0.000207,3]
[318977870,1710473438750,-1708.65866711,0.000207,2]
[318977871,1710473438760,-500.0,0.00020755,2]
[318977873,1710473438771,-457.77848527,0.00020755,2]
[318977875,1710473438782,-500.0,0.00020755,2]
[318977877,1710473438792,-645.2529815,0.00020755,2]
[318977878,1710473438803,-500.0,0.00020755,2]
[318977880,1710473438813,-500.0,0.00020755,2]
[318977882,1710473438823,-500.0,0.00020755,2]
[318977884,1710473438833,-500.0,0.00020755,2]
[318977886,1710473438844,-500.0,0.00020755,2]
[318977888,1710473438855,-509.39163753,0.00020755,2]
[318977890,1710473438865,-500.0,0.00020755,2]
[318977892,1710473438875,-298.96935016,0.00020755,2]
[318977894,1710473438890,-500.0,0.00020755,2]
[318977896,1710473438900,-500.0,0.00020755,2]
[318977898,1710473438910,-500.0,0.00020755,2]
[318977900,1710473438920,-402.83419727,0.00020755,2]
[318977902,1710473438930,-500.0,0.00020755,2]
[318977904,1710473438941,-500.0,0.00020755,2]
[318977906,1710473438951,-500.0,0.00020755,2]
[318977907,1710473438961,-500.0,0.00020755,2]